[Event "Titled Tuesday Blitz February 21 Early 2023"]
[White "Kalajzic, Ivan"]
[Black "Skliarov, Viktor"]
[WhiteFideId "14506378"]
[BlackFideId "14106736"]
[WhiteElo "2062"]
[BlackElo "2383"]
[Result "0-1"]
[Round "11"]
[TimeControl "180+2"]
[Date "2023.02.21"]
[WhiteClock "0:00:05"]
[BlackClock "0:00:07"]

1. b3 {[%clk 0:02:37]}  e5 {[%clk 0:02:57]} 2. Bb2 {[%clk 0:02:36]}  Nc6 {[%clk 0:02:58]} 3. e3 {[%clk 0:02:37]}  Nf6 {[%clk 0:02:58]} 4. Bb5 {[%clk 0:02:35]}  Bd6 {[%clk 0:02:58]} 5. Na3 {[%clk 0:02:35]}  a6 {[%clk 0:02:56]} 6. Be2 {[%clk 0:02:35]}  b5 {[%clk 0:02:52]} 7. c4 {[%clk 0:02:35]}  b4 {[%clk 0:02:46]} 8. Nc2 {[%clk 0:02:35]}  e4 {[%clk 0:02:35]} 9. f3 {[%clk 0:02:29]}  O-O {[%clk 0:02:31]} 10. fxe4 {[%clk 0:02:29]}  Nxe4 {[%clk 0:02:29]} 11. Nf3 {[%clk 0:02:29]}  a5 {[%clk 0:02:12]} 12. O-O {[%clk 0:02:29]}  a4 {[%clk 0:02:12]} 13. Rc1 {[%clk 0:01:59]}  axb3 {[%clk 0:02:08]} 14. axb3 {[%clk 0:01:59]}  Ra2 {[%clk 0:02:08]} 15. Rb1 {[%clk 0:01:52]}  Bb7 {[%clk 0:01:56]} 16. Ncd4 {[%clk 0:01:41]}  Nxd4 {[%clk 0:01:48]} 17. Bxd4 {[%clk 0:01:41]}  c5 {[%clk 0:01:46]} 18. Ra1 {[%clk 0:01:35]}  Qa8 {[%clk 0:01:26]} 19. Rxa2 {[%clk 0:01:19]}  Qxa2 {[%clk 0:01:25]} 20. Qa1 {[%clk 0:01:19]}  Qxa1 {[%clk 0:01:21]} 21. Bxa1 {[%clk 0:01:20]}  Ra8 {[%clk 0:01:21]} 22. Be5 {[%clk 0:00:57]}  Bxe5 {[%clk 0:00:57]} 23. Nxe5 {[%clk 0:00:58]}  d6 {[%clk 0:00:58]} 24. Nxf7 {[%clk 0:00:49]}  Nxd2 {[%clk 0:00:58]} 25. Nxd6 {[%clk 0:00:41]}  Nxf1 {[%clk 0:00:54]} 26. Nxb7 {[%clk 0:00:33]}  Nxe3 {[%clk 0:00:48]} 27. Nxc5 {[%clk 0:00:30]}  Nc2 {[%clk 0:00:42]} 28. Nd3 {[%clk 0:00:24]}  Nd4 {[%clk 0:00:39]} 29. Bg4 {[%clk 0:00:16]}  Rb8 {[%clk 0:00:21]} 30. c5 {[%clk 0:00:16]}  Kf8 {[%clk 0:00:16]} 31. Kf2 {[%clk 0:00:16]}  Ke7 {[%clk 0:00:15]} 32. Ke3 {[%clk 0:00:17]}  Nxb3 {[%clk 0:00:15]} 33. c6 {[%clk 0:00:14]}  Kd6 {[%clk 0:00:15]} 34. Ne5 {[%clk 0:00:13]}  Kxe5 {[%clk 0:00:11]} 35. c7 {[%clk 0:00:13]}  Rf8 {[%clk 0:00:11]} 36. c8=Q {[%clk 0:00:12]}  Rxc8 {[%clk 0:00:11]} 37. Bxc8 {[%clk 0:00:13]}  Nc5 {[%clk 0:00:10]} 38. Kd2 {[%clk 0:00:10]}  Kd4 {[%clk 0:00:10]} 39. Kc2 {[%clk 0:00:09]}  Kc4 {[%clk 0:00:07]} 40. Bf5 {[%clk 0:00:08]}  g6 {[%clk 0:00:07]} 41. Bg4 {[%clk 0:00:06]}  b3+ {[%clk 0:00:07]} 42. Kb1 {[%clk 0:00:05]}  Kc3 {[%clk 0:00:07]} 0-1


[Site "https://www.chess.com"]

[Event "Titled Tuesday Blitz February 21 Early 2023"]
[White "Malyi, Viacheslav"]
[Black "Harsh Suresh"]
[WhiteFideId "14123983"]
[BlackFideId "45018464"]
[WhiteElo "2391"]
[BlackElo "2298"]
[Result "0-1"]
[Round "11"]
[TimeControl "180+2"]
[Date "2023.02.21"]
[WhiteClock "0:00:13"]
[BlackClock "0:00:07"]

1. e4 {[%clk 0:02:47]}  c5 {[%clk 0:02:57]} 2. Nf3 {[%clk 0:02:45]}  g6 {[%clk 0:02:57]} 3. d4 {[%clk 0:02:46]}  cxd4 {[%clk 0:02:57]} 4. Nxd4 {[%clk 0:02:46]}  Nc6 {[%clk 0:02:57]} 5. c4 {[%clk 0:02:46]}  Nf6 {[%clk 0:02:57]} 6. Nc3 {[%clk 0:02:45]}  d6 {[%clk 0:02:57]} 7. Be2 {[%clk 0:02:45]}  Nxd4 {[%clk 0:02:57]} 8. Qxd4 {[%clk 0:02:42]}  Bg7 {[%clk 0:02:58]} 9. Be3 {[%clk 0:02:42]}  O-O {[%clk 0:02:58]} 10. Qd2 {[%clk 0:02:43]}  a5 {[%clk 0:02:58]} 11. f3 {[%clk 0:02:43]}  a4 {[%clk 0:02:59]} 12. O-O-O {[%clk 0:02:40]}  Be6 {[%clk 0:02:58]} 13. Kb1 {[%clk 0:02:40]}  a3 {[%clk 0:02:44]} 14. b3 {[%clk 0:02:38]}  Nd7 {[%clk 0:02:40]} 15. Nd5 {[%clk 0:02:37]}  Bxd5 {[%clk 0:02:31]} 16. cxd5 {[%clk 0:02:38]}  Nc5 {[%clk 0:02:25]} 17. Bd4 {[%clk 0:02:26]}  Bxd4 {[%clk 0:02:07]} 18. Qxd4 {[%clk 0:02:27]}  Qb6 {[%clk 0:02:07]} 19. Rc1 {[%clk 0:02:16]}  Rfc8 {[%clk 0:02:01]} 20. Rc3 {[%clk 0:02:07]}  Rc7 {[%clk 0:01:45]} 21. Rhc1 {[%clk 0:01:59]}  Rac8 {[%clk 0:01:44]} 22. Rc4 {[%clk 0:01:51]}  Qa7 {[%clk 0:00:43]} 23. h4 {[%clk 0:01:41]}  b5 {[%clk 0:00:23]} 24. R4c2 {[%clk 0:01:31]}  Qb7 {[%clk 0:00:21]} 25. h5 {[%clk 0:01:23]}  gxh5 {[%clk 0:00:22]} 26. f4 {[%clk 0:01:23]}  Nd7 {[%clk 0:00:16]} 27. Bxh5 {[%clk 0:01:16]}  Rxc2 {[%clk 0:00:15]} 28. Rxc2 {[%clk 0:01:16]}  Rxc2 {[%clk 0:00:16]} 29. Kxc2 {[%clk 0:01:17]}  Nf6 {[%clk 0:00:16]} 30. Bf3 {[%clk 0:01:15]}  Qc7+ {[%clk 0:00:16]} 31. Qc3 {[%clk 0:01:15]}  Qb6 {[%clk 0:00:17]} 32. e5 {[%clk 0:01:08]}  dxe5 {[%clk 0:00:17]} 33. fxe5 {[%clk 0:01:08]}  Nd7 {[%clk 0:00:11]} 34. Qc8+ {[%clk 0:00:48]}  Nf8 {[%clk 0:00:11]} 35. Qg4+ {[%clk 0:00:38]}  Ng6 {[%clk 0:00:10]} 36. Qc8+ {[%clk 0:00:38]}  Kg7 {[%clk 0:00:11]} 37. Qc3 {[%clk 0:00:34]}  b4 {[%clk 0:00:11]} 38. Qe1 {[%clk 0:00:23]}  Qd4 {[%clk 0:00:11]} 39. Kc1 {[%clk 0:00:14]}  Qa1+ {[%clk 0:00:08]} 40. Kd2 {[%clk 0:00:12]}  Qxa2+ {[%clk 0:00:08]} 41. Ke3 {[%clk 0:00:12]}  Qxb3+ {[%clk 0:00:08]} 42. Ke4 {[%clk 0:00:13]}  a2 {[%clk 0:00:07]} 43. Kf5 {[%clk 0:00:13]}  Qb1+ {[%clk 0:00:07]} 0-1


[Site "https://www.chess.com"]

[Event "Titled Tuesday Blitz February 21 Early 2023"]
[White "Turzo, Attila"]
[Black "Skvortsov, Andrei"]
[WhiteFideId "704954"]
[BlackFideId "24108600"]
[WhiteElo "2279"]
[BlackElo "2313"]
[Result "1-0"]
[Round "11"]
[TimeControl "180+2"]
[Date "2023.02.21"]
[WhiteClock "0:00:38"]
[BlackClock "0:00:14"]

1. d4 {[%clk 0:02:57]}  Nf6 {[%clk 0:02:42]} 2. c4 {[%clk 0:02:58]}  g6 {[%clk 0:02:42]} 3. Nc3 {[%clk 0:02:58]}  Bg7 {[%clk 0:02:43]} 4. e4 {[%clk 0:02:58]}  O-O {[%clk 0:02:44]} 5. Nf3 {[%clk 0:02:58]}  d6 {[%clk 0:02:43]} 6. Be2 {[%clk 0:02:59]}  Bg4 {[%clk 0:02:39]} 7. Be3 {[%clk 0:02:58]}  Nc6 {[%clk 0:02:37]} 8. Ng1 {[%clk 0:02:57]}  Bxe2 {[%clk 0:02:36]} 9. Ngxe2 {[%clk 0:02:58]}  e5 {[%clk 0:02:36]} 10. d5 {[%clk 0:02:56]}  Ne7 {[%clk 0:02:36]} 11. f3 {[%clk 0:02:55]}  Nd7 {[%clk 0:02:36]} 12. g4 {[%clk 0:02:47]}  f5 {[%clk 0:02:37]} 13. gxf5 {[%clk 0:02:43]}  gxf5 {[%clk 0:02:37]} 14. Qd2 {[%clk 0:02:44]}  Ng6 {[%clk 0:02:30]} 15. O-O-O {[%clk 0:02:40]}  fxe4 {[%clk 0:02:31]} 16. fxe4 {[%clk 0:02:40]}  Qh4 {[%clk 0:02:30]} 17. Ng3 {[%clk 0:02:32]}  Nb6 {[%clk 0:02:19]} 18. b3 {[%clk 0:02:31]}  Rf3 {[%clk 0:02:04]} 19. Nf5 {[%clk 0:02:23]}  Qh3 {[%clk 0:02:05]} 20. Kb1 {[%clk 0:02:10]}  Rf8 {[%clk 0:02:05]} 21. Rhg1 {[%clk 0:01:52]}  R8xf5 {[%clk 0:01:59]} 22. exf5 {[%clk 0:01:51]}  Rxe3 {[%clk 0:01:48]} 23. fxg6 {[%clk 0:01:51]}  Rxc3 {[%clk 0:01:31]} 24. gxh7+ {[%clk 0:01:51]}  Qxh7+ {[%clk 0:01:32]} 25. Kb2 {[%clk 0:01:35]}  Rf3 {[%clk 0:00:42]} 26. Qc2 {[%clk 0:01:15]}  Qxc2+ {[%clk 0:00:27]} 27. Kxc2 {[%clk 0:01:16]}  Rf2+ {[%clk 0:00:28]} 28. Rd2 {[%clk 0:01:05]}  Rxd2+ {[%clk 0:00:28]} 29. Kxd2 {[%clk 0:01:06]}  Nd7 {[%clk 0:00:28]} 30. Kd3 {[%clk 0:01:01]}  Nf6 {[%clk 0:00:24]} 31. b4 {[%clk 0:00:56]}  a6 {[%clk 0:00:23]} 32. a4 {[%clk 0:00:56]}  b6 {[%clk 0:00:22]} 33. a5 {[%clk 0:00:52]}  bxa5 {[%clk 0:00:22]} 34. bxa5 {[%clk 0:00:52]}  Kf7 {[%clk 0:00:19]} 35. Rb1 {[%clk 0:00:50]}  Nd7 {[%clk 0:00:20]} 36. Ke3 {[%clk 0:00:47]}  Bh6+ {[%clk 0:00:18]} 37. Kf3 {[%clk 0:00:47]}  c6 {[%clk 0:00:16]} 38. dxc6 {[%clk 0:00:42]}  e4+ {[%clk 0:00:17]} 39. Kxe4 {[%clk 0:00:40]}  Nf6+ {[%clk 0:00:14]} 40. Kf5 {[%clk 0:00:39]}  Ne8 {[%clk 0:00:14]} 41. Rb7+ {[%clk 0:00:38]} 1-0


[Site "https://www.chess.com"]

[Event "Titled Tuesday Blitz February 21 Early 2023"]
[White "Stijve, Theo"]
[Black "Cunha, Lucas Aguiar"]
[WhiteFideId "1331132"]
[BlackFideId "2125404"]
[WhiteElo "2351"]
[BlackElo "2309"]
[Result "1-0"]
[Round "11"]
[TimeControl "180+2"]
[Date "2023.02.21"]
[WhiteClock "0:00:40"]
[BlackClock "0:01:03"]

1. e4 {[%clk 0:03:00]}  c5 {[%clk 0:02:59]} 2. Nf3 {[%clk 0:03:00]}  e6 {[%clk 0:02:59]} 3. d4 {[%clk 0:03:00]}  cxd4 {[%clk 0:03:00]} 4. Nxd4 {[%clk 0:03:01]}  Nc6 {[%clk 0:03:01]} 5. Nc3 {[%clk 0:03:01]}  Qc7 {[%clk 0:03:01]} 6. Be2 {[%clk 0:03:01]}  a6 {[%clk 0:03:02]} 7. O-O {[%clk 0:02:58]}  Nf6 {[%clk 0:03:02]} 8. Be3 {[%clk 0:02:57]}  Bb4 {[%clk 0:03:02]} 9. Nxc6 {[%clk 0:02:55]}  bxc6 {[%clk 0:03:03]} 10. f4 {[%clk 0:02:55]}  O-O {[%clk 0:02:57]} 11. e5 {[%clk 0:02:50]}  Nd5 {[%clk 0:02:57]} 12. Nxd5 {[%clk 0:02:50]}  cxd5 {[%clk 0:02:58]} 13. c3 {[%clk 0:02:46]}  Be7 {[%clk 0:02:56]} 14. Rc1 {[%clk 0:02:38]}  Rb8 {[%clk 0:02:55]} 15. b4 {[%clk 0:02:34]}  a5 {[%clk 0:02:51]} 16. b5 {[%clk 0:02:31]}  d6 {[%clk 0:02:51]} 17. Bd4 {[%clk 0:02:21]}  dxe5 {[%clk 0:02:49]} 18. fxe5 {[%clk 0:02:21]}  Bg5 {[%clk 0:02:40]} 19. Rb1 {[%clk 0:02:17]}  Bd7 {[%clk 0:02:35]} 20. a4 {[%clk 0:02:17]}  f6 {[%clk 0:02:31]} 21. b6 {[%clk 0:02:03]}  Qd8 {[%clk 0:02:25]} 22. Bc5 {[%clk 0:01:40]}  Rf7 {[%clk 0:02:20]} 23. b7 {[%clk 0:01:40]}  Bc6 {[%clk 0:02:18]} 24. Ba6 {[%clk 0:01:24]}  Bxb7 {[%clk 0:02:15]} 25. Bd6 {[%clk 0:01:23]}  Bxa6 {[%clk 0:01:20]} 26. Rxb8 {[%clk 0:01:21]}  Bc8 {[%clk 0:01:20]} 27. Qb1 {[%clk 0:01:04]}  Be3+ {[%clk 0:01:17]} 28. Kh1 {[%clk 0:01:04]}  Ba7 {[%clk 0:01:17]} 29. Ra8 {[%clk 0:00:58]}  Qd7 {[%clk 0:01:09]} 30. Qb5 {[%clk 0:00:49]}  Qd8 {[%clk 0:01:03]} 31. Qxa5 {[%clk 0:00:40]} 1-0


[Site "https://www.chess.com"]

[Event "Titled Tuesday Blitz February 21 Early 2023"]
[White "Jakubowski, Krzysztof"]
[Black "Zacurdajev, Dmitry"]
[WhiteFideId "1112848"]
[BlackFideId "4196309"]
[WhiteElo "2486"]
[BlackElo "2273"]
[Result "1-0"]
[Round "11"]
[TimeControl "180+2"]
[Date "2023.02.21"]
[WhiteClock "0:01:15"]
[BlackClock "0:00:40"]

1. e4 {[%clk 0:03:00]}  c6 {[%clk 0:02:59]} 2. Nf3 {[%clk 0:02:59]}  d5 {[%clk 0:03:00]} 3. d3 {[%clk 0:02:59]}  e6 {[%clk 0:02:58]} 4. Nbd2 {[%clk 0:02:56]}  Nf6 {[%clk 0:02:58]} 5. g3 {[%clk 0:02:56]}  Be7 {[%clk 0:02:57]} 6. Bg2 {[%clk 0:02:56]}  O-O {[%clk 0:02:58]} 7. O-O {[%clk 0:02:56]}  c5 {[%clk 0:02:58]} 8. e5 {[%clk 0:02:55]}  Nfd7 {[%clk 0:02:58]} 9. Re1 {[%clk 0:02:55]}  Nc6 {[%clk 0:02:59]} 10. Nf1 {[%clk 0:02:54]}  b5 {[%clk 0:02:59]} 11. h4 {[%clk 0:02:54]}  Re8 {[%clk 0:02:58]} 12. h5 {[%clk 0:02:54]}  h6 {[%clk 0:02:58]} 13. Bf4 {[%clk 0:02:53]}  a5 {[%clk 0:02:58]} 14. Qd2 {[%clk 0:02:52]}  Bf8 {[%clk 0:02:58]} 15. g4 {[%clk 0:02:51]}  f6 {[%clk 0:02:34]} 16. exf6 {[%clk 0:02:42]}  Nxf6 {[%clk 0:02:32]} 17. N1h2 {[%clk 0:02:29]}  Bd6 {[%clk 0:02:15]} 18. Ne5 {[%clk 0:02:20]}  Nxe5 {[%clk 0:02:13]} 19. Bxe5 {[%clk 0:02:19]}  Bxe5 {[%clk 0:02:14]} 20. Rxe5 {[%clk 0:02:18]}  Qd6 {[%clk 0:02:10]} 21. Rae1 {[%clk 0:02:10]}  Nd7 {[%clk 0:02:04]} 22. Rxd5 {[%clk 0:02:08]}  exd5 {[%clk 0:01:57]} 23. Rxe8+ {[%clk 0:02:07]}  Nf8 {[%clk 0:01:58]} 24. Qe2 {[%clk 0:01:59]}  Bb7 {[%clk 0:01:57]} 25. Rxa8 {[%clk 0:01:58]}  Bxa8 {[%clk 0:01:58]} 26. Qe8 {[%clk 0:01:58]}  Bc6 {[%clk 0:01:56]} 27. Qc8 {[%clk 0:01:54]}  Qe6 {[%clk 0:01:26]} 28. Qc7 {[%clk 0:01:40]}  a4 {[%clk 0:01:18]} 29. Nf1 {[%clk 0:01:35]}  Nd7 {[%clk 0:01:15]} 30. c4 {[%clk 0:01:28]}  bxc4 {[%clk 0:01:10]} 31. dxc4 {[%clk 0:01:28]}  Nf6 {[%clk 0:01:05]} 32. Ne3 {[%clk 0:01:23]}  Ne4 {[%clk 0:00:45]} 33. cxd5 {[%clk 0:01:16]}  Bxd5 {[%clk 0:00:40]} 34. Qd8+ {[%clk 0:01:15]} 1-0


[Site "https://www.chess.com"]

[Event "Titled Tuesday Blitz February 21 Early 2023"]
[White "Andreev, Eduard"]
[Black "Rottenwohrer Suarez, Juan"]
[WhiteFideId "14103400"]
[BlackFideId "32068182"]
[WhiteElo "2413"]
[BlackElo "2265"]
[Result "1/2-1/2"]
[Round "11"]
[TimeControl "180+2"]
[Date "2023.02.21"]
[WhiteClock "0:00:06"]
[BlackClock "0:00:07"]

1. d4 {[%clk 0:03:00]}  Nf6 {[%clk 0:03:00]} 2. c4 {[%clk 0:03:01]}  g6 {[%clk 0:03:00]} 3. Nc3 {[%clk 0:03:00]}  Bg7 {[%clk 0:03:01]} 4. g3 {[%clk 0:02:57]}  O-O {[%clk 0:02:59]} 5. Bg2 {[%clk 0:02:57]}  d6 {[%clk 0:03:00]} 6. Nf3 {[%clk 0:02:57]}  Nc6 {[%clk 0:03:00]} 7. O-O {[%clk 0:02:56]}  e5 {[%clk 0:03:01]} 8. d5 {[%clk 0:02:53]}  Nb8 {[%clk 0:03:00]} 9. e4 {[%clk 0:02:51]}  a5 {[%clk 0:02:58]} 10. Ne1 {[%clk 0:02:51]}  Na6 {[%clk 0:02:45]} 11. Nd3 {[%clk 0:02:50]}  b6 {[%clk 0:02:28]} 12. h3 {[%clk 0:02:43]}  Nc5 {[%clk 0:02:29]} 13. Be3 {[%clk 0:02:41]}  Ne8 {[%clk 0:02:03]} 14. a3 {[%clk 0:02:34]}  f5 {[%clk 0:02:02]} 15. b4 {[%clk 0:02:24]}  axb4 {[%clk 0:01:59]} 16. Nxb4 {[%clk 0:02:14]}  f4 {[%clk 0:01:51]} 17. Bxc5 {[%clk 0:02:01]}  bxc5 {[%clk 0:01:52]} 18. Nc6 {[%clk 0:02:01]}  Qg5 {[%clk 0:01:52]} 19. h4 {[%clk 0:01:49]}  Qh6 {[%clk 0:01:43]} 20. Ne7+ {[%clk 0:01:48]}  Kh8 {[%clk 0:01:42]} 21. Nxc8 {[%clk 0:01:49]}  Rxc8 {[%clk 0:01:26]} 22. Qg4 {[%clk 0:01:31]}  Nf6 {[%clk 0:01:24]} 23. Qg5 {[%clk 0:01:31]}  fxg3 {[%clk 0:01:17]} 24. fxg3 {[%clk 0:01:27]}  Qxg5 {[%clk 0:00:50]} 25. hxg5 {[%clk 0:01:28]}  Nh5 {[%clk 0:00:51]} 26. Kh2 {[%clk 0:01:26]}  h6 {[%clk 0:00:51]} 27. gxh6 {[%clk 0:01:21]}  Bxh6 {[%clk 0:00:52]} 28. Nb5 {[%clk 0:01:11]}  Kg7 {[%clk 0:00:40]} 29. Bh3 {[%clk 0:01:09]}  Rxf1 {[%clk 0:00:40]} 30. Rxf1 {[%clk 0:01:07]}  Ra8 {[%clk 0:00:40]} 31. Rf3 {[%clk 0:00:48]}  Bc1 {[%clk 0:00:39]} 32. Rc3 {[%clk 0:00:37]}  Bd2 {[%clk 0:00:37]} 33. Rd3 {[%clk 0:00:35]}  Ba5 {[%clk 0:00:37]} 34. Be6 {[%clk 0:00:26]}  Rf8 {[%clk 0:00:35]} 35. Kg2 {[%clk 0:00:23]}  Nf6 {[%clk 0:00:33]} 36. Re3 {[%clk 0:00:22]}  Nh7 {[%clk 0:00:29]} 37. Re2 {[%clk 0:00:20]}  Ng5 {[%clk 0:00:29]} 38. Bd7 {[%clk 0:00:19]}  Rf7 {[%clk 0:00:28]} 39. Bg4 {[%clk 0:00:19]}  Rf8 {[%clk 0:00:22]} 40. Na7 {[%clk 0:00:19]}  Bb6 {[%clk 0:00:21]} 41. Nc6 {[%clk 0:00:19]}  Ra8 {[%clk 0:00:20]} 42. Re3 {[%clk 0:00:19]}  Nh7 {[%clk 0:00:18]} 43. Be2 {[%clk 0:00:16]}  Nf6 {[%clk 0:00:17]} 44. Kf3 {[%clk 0:00:16]}  Kf7 {[%clk 0:00:12]} 45. Rb3 {[%clk 0:00:15]}  Ng8 {[%clk 0:00:12]} 46. Ke3 {[%clk 0:00:13]}  Ne7 {[%clk 0:00:12]} 47. Bg4 {[%clk 0:00:12]}  Nxc6 {[%clk 0:00:12]} 48. dxc6 {[%clk 0:00:10]}  Kf6 {[%clk 0:00:12]} 49. Ke2 {[%clk 0:00:09]}  Ra5 {[%clk 0:00:12]} 50. Rf3+ {[%clk 0:00:07]}  Kg7 {[%clk 0:00:10]} 51. Rb3 {[%clk 0:00:08]}  Ra7 {[%clk 0:00:08]} 52. Be6 {[%clk 0:00:07]}  Kf6 {[%clk 0:00:09]} 53. Bh3 {[%clk 0:00:07]}  Kg7 {[%clk 0:00:09]} 54. Kd3 {[%clk 0:00:07]}  Ra8 {[%clk 0:00:08]} 55. Rxb6 {[%clk 0:00:07]}  Rxa3+ {[%clk 0:00:07]} 56. Kc2 {[%clk 0:00:06]}  cxb6 {[%clk 0:00:07]} 57. c7 {[%clk 0:00:07]}  Ra8 {[%clk 0:00:05]} 58. c8=Q {[%clk 0:00:07]}  Rxc8 {[%clk 0:00:05]} 59. Bxc8 {[%clk 0:00:08]}  Kf6 {[%clk 0:00:06]} 60. Bb7 {[%clk 0:00:08]}  Kg5 {[%clk 0:00:06]} 61. Kd3 {[%clk 0:00:07]}  Kg4 {[%clk 0:00:06]} 62. Ke3 {[%clk 0:00:07]}  Kxg3 {[%clk 0:00:07]} 63. Bc8 {[%clk 0:00:07]}  g5 {[%clk 0:00:07]} 64. Bf5 {[%clk 0:00:07]}  Kg2 {[%clk 0:00:05]} 65. Bg4 {[%clk 0:00:07]}  Kg3 {[%clk 0:00:05]} 66. Be6 {[%clk 0:00:07]}  Kg2 {[%clk 0:00:06]} 67. Bd7 {[%clk 0:00:05]}  Kg3 {[%clk 0:00:06]} 68. Be6 {[%clk 0:00:05]}  Kg2 {[%clk 0:00:07]} 69. Ke2 {[%clk 0:00:06]}  Kg3 {[%clk 0:00:07]} 70. Ke3 {[%clk 0:00:06]} 1/2-1/2


[Site "https://www.chess.com"]

[Event "Titled Tuesday Blitz February 21 Early 2023"]
[White "Manukyan, Sargis A."]
[Black "Kvaloy, Aksel Bu"]
[WhiteFideId "13303970"]
[BlackFideId "1528815"]
[WhiteElo "2158"]
[BlackElo "2321"]
[Result "1-0"]
[Round "11"]
[TimeControl "180+2"]
[Date "2023.02.21"]
[WhiteClock "0:00:21"]
[BlackClock "0:00:24"]

1. d4 {[%clk 0:03:00]}  Nf6 {[%clk 0:02:58]} 2. c4 {[%clk 0:03:01]}  e6 {[%clk 0:02:58]} 3. Nc3 {[%clk 0:03:01]}  Bb4 {[%clk 0:02:58]} 4. a3 {[%clk 0:03:02]}  Bxc3+ {[%clk 0:02:57]} 5. bxc3 {[%clk 0:03:03]}  c5 {[%clk 0:02:57]} 6. e3 {[%clk 0:03:03]}  O-O {[%clk 0:02:57]} 7. Bd3 {[%clk 0:03:04]}  d6 {[%clk 0:02:57]} 8. Ne2 {[%clk 0:03:05]}  Nc6 {[%clk 0:02:48]} 9. O-O {[%clk 0:03:04]}  b6 {[%clk 0:02:44]} 10. e4 {[%clk 0:03:02]}  Ne8 {[%clk 0:02:44]} 11. Ng3 {[%clk 0:03:01]}  e5 {[%clk 0:02:43]} 12. d5 {[%clk 0:02:58]}  Ne7 {[%clk 0:02:43]} 13. f4 {[%clk 0:02:58]}  f6 {[%clk 0:02:42]} 14. f5 {[%clk 0:02:58]}  Bd7 {[%clk 0:02:26]} 15. Nh5 {[%clk 0:02:50]}  Rf7 {[%clk 0:02:21]} 16. g4 {[%clk 0:02:50]}  h6 {[%clk 0:02:20]} 17. h4 {[%clk 0:02:50]}  Kf8 {[%clk 0:02:17]} 18. Ra2 {[%clk 0:02:51]}  Ng8 {[%clk 0:02:13]} 19. Rg2 {[%clk 0:02:49]}  Bc8 {[%clk 0:02:07]} 20. g5 {[%clk 0:02:49]}  Ke7 {[%clk 0:02:05]} 21. gxf6+ {[%clk 0:02:39]}  Nexf6 {[%clk 0:02:03]} 22. Nxg7 {[%clk 0:02:37]}  Qf8 {[%clk 0:01:30]} 23. Ne6 {[%clk 0:02:34]}  Bxe6 {[%clk 0:01:31]} 24. fxe6 {[%clk 0:02:30]}  Rg7 {[%clk 0:01:31]} 25. Qf3 {[%clk 0:02:16]}  Re8 {[%clk 0:01:23]} 26. Rxg7+ {[%clk 0:02:12]}  Qxg7+ {[%clk 0:01:23]} 27. Kh1 {[%clk 0:02:13]}  Qg4 {[%clk 0:01:13]} 28. Qxg4 {[%clk 0:02:00]}  Nxg4 {[%clk 0:01:14]} 29. Rf7+ {[%clk 0:02:00]}  Kd8 {[%clk 0:01:15]} 30. Rd7+ {[%clk 0:01:59]}  Kc8 {[%clk 0:01:15]} 31. Rf7 {[%clk 0:01:48]}  N8f6 {[%clk 0:01:11]} 32. Bxh6 {[%clk 0:01:46]}  Nxe4 {[%clk 0:01:00]} 33. Bxe4 {[%clk 0:01:44]}  Nxh6 {[%clk 0:01:01]} 34. Rg7 {[%clk 0:01:42]}  Kd8 {[%clk 0:00:59]} 35. Rxa7 {[%clk 0:01:28]}  Ng4 {[%clk 0:00:58]} 36. Bg6 {[%clk 0:01:26]}  Re7 {[%clk 0:00:54]} 37. Ra8+ {[%clk 0:01:19]}  Kc7 {[%clk 0:00:53]} 38. h5 {[%clk 0:01:12]}  e4 {[%clk 0:00:36]} 39. Kg2 {[%clk 0:01:00]}  Ne3+ {[%clk 0:00:34]} 40. Kf2 {[%clk 0:00:56]}  Nxc4 {[%clk 0:00:34]} 41. h6 {[%clk 0:00:52]}  Ne5 {[%clk 0:00:28]} 42. Bxe4 {[%clk 0:00:42]}  Ng4+ {[%clk 0:00:28]} 43. Kf3 {[%clk 0:00:41]}  Nxh6 {[%clk 0:00:29]} 44. Rh8 {[%clk 0:00:41]}  Nf7 {[%clk 0:00:18]} 45. exf7 {[%clk 0:00:42]}  Rxf7+ {[%clk 0:00:19]} 46. Ke3 {[%clk 0:00:42]}  Re7 {[%clk 0:00:17]} 47. Rh7 {[%clk 0:00:43]}  Rxh7 {[%clk 0:00:16]} 48. Bxh7 {[%clk 0:00:44]}  b5 {[%clk 0:00:17]} 49. Kd3 {[%clk 0:00:44]}  Kb6 {[%clk 0:00:17]} 50. Kc2 {[%clk 0:00:42]}  Ka5 {[%clk 0:00:17]} 51. Kb2 {[%clk 0:00:42]}  Ka4 {[%clk 0:00:16]} 52. Bc2+ {[%clk 0:00:42]}  Ka5 {[%clk 0:00:16]} 53. Bd3 {[%clk 0:00:42]}  Ka4 {[%clk 0:00:15]} 54. Bc2+ {[%clk 0:00:42]}  Ka5 {[%clk 0:00:16]} 55. Bd1 {[%clk 0:00:42]}  Kb6 {[%clk 0:00:15]} 56. Be2 {[%clk 0:00:43]}  Ka5 {[%clk 0:00:15]} 57. Bf1 {[%clk 0:00:43]}  Ka4 {[%clk 0:00:15]} 58. Kc2 {[%clk 0:00:38]}  b4 {[%clk 0:00:07]} 59. axb4 {[%clk 0:00:37]}  cxb4 {[%clk 0:00:08]} 60. c4 {[%clk 0:00:37]}  Ka3 {[%clk 0:00:07]} 61. c5 {[%clk 0:00:33]}  Ka2 {[%clk 0:00:07]} 62. Bc4+ {[%clk 0:00:33]}  Ka1 {[%clk 0:00:06]} 63. cxd6 {[%clk 0:00:29]}  b3+ {[%clk 0:00:07]} 64. Kxb3 {[%clk 0:00:25]}  Kb1 {[%clk 0:00:08]} 65. Kc3 {[%clk 0:00:22]}  Ka1 {[%clk 0:00:09]} 66. Bb3 {[%clk 0:00:22]}  Kb1 {[%clk 0:00:09]} 67. d7 {[%clk 0:00:21]}  Ka1 {[%clk 0:00:09]} 68. d8=Q {[%clk 0:00:19]}  Kb1 {[%clk 0:00:10]} 69. d6 {[%clk 0:00:19]}  Ka1 {[%clk 0:00:11]} 70. d7 {[%clk 0:00:19]}  Kb1 {[%clk 0:00:12]} 71. Qe8 {[%clk 0:00:20]}  Ka1 {[%clk 0:00:13]} 72. d8=Q {[%clk 0:00:20]}  Kb1 {[%clk 0:00:14]} 73. Qee7 {[%clk 0:00:20]}  Ka1 {[%clk 0:00:15]} 74. Qdd7 {[%clk 0:00:21]}  Kb1 {[%clk 0:00:16]} 75. Qde8 {[%clk 0:00:22]}  Ka1 {[%clk 0:00:17]} 76. Q8f7 {[%clk 0:00:23]}  Kb1 {[%clk 0:00:18]} 77. Qe2 {[%clk 0:00:21]}  Ka1 {[%clk 0:00:18]} 78. Qff2 {[%clk 0:00:21]}  Kb1 {[%clk 0:00:19]} 79. Qg2 {[%clk 0:00:21]}  Ka1 {[%clk 0:00:20]} 80. Qef2 {[%clk 0:00:21]}  Kb1 {[%clk 0:00:21]} 81. Qh2 {[%clk 0:00:22]}  Ka1 {[%clk 0:00:22]} 82. Qhg3 {[%clk 0:00:22]}  Kb1 {[%clk 0:00:23]} 83. Qgf4 {[%clk 0:00:23]}  Ka1 {[%clk 0:00:24]} 84. Q4e3 {[%clk 0:00:23]}  Kb1 {[%clk 0:00:25]} 85. Qc1+ {[%clk 0:00:22]}  Kxc1 {[%clk 0:00:24]} 86. Qc2# {[%clk 0:00:21]} 1-0


[Site "https://www.chess.com"]